bitfinex-derivatives/quotes_SOLF0:USTF0_20250312
["timestamp","ask_amount","ask_price","bid_price","bid_amount"]
[1741804145647,0.05725951,125.13,125.11,8.05098404]
[1741804145953,12.4637103,125.13,125.11,8.05098404]
[1741804146141,8.05045951,125.13,125.11,8.05098404]
[1741804146340,0.05725951,125.13,125.11,0.05698404]
[1741804146543,0.05725951,125.13,125.12,7.9937]
[1741804149650,5.951e-05,125.13,125.12,41.0737]
[1741804149852,5.951e-05,125.13,125.12,47.2582]
[1741804150253,4.41770768,125.17,125.12,39.2645]
[1741804150556,2.0943,125.22,125.15,20.72620837]
[1741804150749,4.4184571,125.21,125.15,53.80620837]
[1741804150949,4.4184571,125.2,125.15,53.80620837]
[1741804151249,4.4184571,125.19,125.15,53.80620837]
[1741804151452,0.05632666,125.19,125.16,0.05920528]
[1741804152047,4.47292104,125.19,125.16,0.05920528]
[1741804152251,0.05632666,125.19,125.18,7.9899]
[1741804152453,0.05632666,125.19,125.16,0.05920528]
[1741804153059,0.05632666,125.19,125.17,7.9902]
[1741804154658,0.05632666,125.19,125.16,0.05920528]
[1741804154857,0.05632666,125.19,125.16,8.04980528]
[1741804155057,0.05632666,125.19,125.16,0.05920528]
[1741804155257,0.05632666,125.19,125.17,7.9904]
[1741804156856,0.05632666,125.19,125.16,0.05920528]
[1741804157161,4.41696889,125.18,125.16,0.05920528]
[1741804157353,33.13367726,125.17,125.16,0.05920528]
[1741804157560,25.14317726,125.17,125.11,7.9941]
[1741804157861,4.41696889,125.16,125.11,7.9941]
[1741804158062,7.9934,125.13,125.1,7.9947]
[1741804158761,8.05479845,125.13,125.1,8.05163102]
[1741804159059,0.06139845,125.13,125.1,8.05163102]
[1741804159459,7.9938,125.12,125.1,0.05693102]
[1741804159659,20.78760682,125.13,125.1,0.05693102]
[1741804159854,4.41423543,125.12,125.1,0.05693102]
[1741804160864,12.40833543,125.12,125.1,0.05693102]
[1741804161162,7.9941,125.12,125.1,0.05693102]
[1741804161558,0.06139845,125.13,125.1,0.05693102]
[1741804163757,0.06139845,125.13,125.12,7.9937]
[1741804164464,0.06139845,125.13,125.1,0.05693102]
[1741804165162,0.06139845,125.13,125.11,7.9941]
[1741804165362,0.06139845,125.13,125.1,0.05693102]
[1741804167359,0.06139845,125.13,125.1,8.05163102]
[1741804167562,0.06139845,125.13,125.1,0.05693102]
[1741804167761,0.06139845,125.13,125.11,7.9939]
[1741804167955,0.06139845,125.13,125.1,0.05693102]
[1741804168356,7.9943,125.12,125.1,0.05693102]
[1741804169064,4.42249994,125.11,125.1,0.05693102]
[1741804169466,12.41689994,125.11,125.1,0.05693102]
[1741804169967,4.42249994,125.11,125.1,0.05693102]
[1741804170558,12.41689994,125.11,125.1,0.05693102]
[1741804170762,4.42249994,125.11,125.1,0.05693102]
[1741804171370,0.06139845,125.13,125.1,0.05693102]
[1741804171566,4.42667244,125.12,125.1,0.05693102]
[1741804171767,0.06139845,125.13,125.1,0.05693102]
[1741804171968,4.42677713,125.12,125.1,0.05693102]
[1741804172164,0.06139845,125.13,125.11,7.9944]
[1741804172369,4.42778151,125.12,125.11,7.9944]
[1741804172572,0.06139845,125.13,125.1,0.05693102]
[1741804173372,4.42721564,125.12,125.1,0.05693102]
[1741804173569,0.06139845,125.13,125.11,7.9938]
[1741804173763,0.06139845,125.13,125.1,0.05693102]
[1741804174774,0.06139845,125.13,125.11,7.9941]
[1741804174966,8.05449845,125.13,125.1,0.05693102]
[1741804175161,4.42709459,125.12,125.1,0.05693102]
[1741804175363,0.06139845,125.13,125.11,7.9941]
[1741804175573,4.42821702,125.12,125.11,7.9941]
[1741804176172,4.42821702,125.12,125.1,8.05163102]
[1741804176368,0.06139845,125.13,125.1,8.05163102]
[1741804176564,4.42836242,125.12,125.1,8.05163102]
[1741804176867,8.05469845,125.13,125.1,8.05163102]
[1741804177072,4.42823124,125.12,125.1,8.05163102]
[1741804177269,8.05469845,125.13,125.1,8.05163102]
[1741804177472,4.42800279,125.12,125.1,8.05163102]
[1741804177770,8.05469845,125.13,125.1,8.05163102]
[1741804177965,4.42819868,125.12,125.1,8.05163102]
[1741804178168,8.05469845,125.13,125.1,8.05163102]
[1741804178467,0.06139845,125.13,125.1,0.05693102]
[1741804179470,8.05479845,125.13,125.1,8.05163102]
[1741804179670,4.42749636,125.12,125.1,8.05163102]
[1741804179871,0.06139845,125.13,125.1,8.05163102]
[1741804180075,4.42780145,125.12,125.1,8.05163102]
[1741804180371,8.05469845,125.13,125.1,8.05163102]
[1741804180569,4.42827288,125.12,125.11,7.9943]
[1741804180872,8.05469845,125.13,125.11,7.9943]
[1741804182076,4.42936245,125.12,125.11,7.9943]
[1741804182372,0.06139845,125.13,125.11,7.9943]
[1741804182574,4.42918241,125.12,125.11,7.9943]
[1741804183273,8.05469845,125.13,125.11,7.9943]
[1741804184174,4.42970072,125.12,125.11,7.9943]
[1741804184368,8.05469845,125.13,125.11,7.9943]
[1741804184772,7.9944,125.11,125.1,0.05693102]
[1741804184968,12.42347551,125.11,125.1,0.05693102]
[1741804185571,4.42907551,125.11,125.1,0.05693102]
[1741804185876,4.42907551,125.11,125.1,8.05193102]
[1741804186569,0.06139845,125.13,125.1,8.05193102]
[1741804186776,4.43007667,125.12,125.11,7.9944]
[1741804186971,4.43007667,125.12,125.1,0.05693102]
[1741804187172,4.43007667,125.11,125.1,0.05693102]
[1741804187372,8.05479845,125.13,125.1,0.05693102]
[1741804187578,4.42992832,125.12,125.1,0.05693102]
[1741804187778,8.05479845,125.13,125.1,0.05693102]
[1741804187978,4.43052502,125.12,125.11,7.9944]
[1741804188478,4.43066764,125.12,125.1,8.05153102]
[1741804188673,4.43050611,125.11,125.1,0.05693102]
[1741804189281,8.05489845,125.13,125.1,0.05693102]
[1741804189481,4.43049551,125.12,125.1,0.05693102]
[1741804189777,8.05489845,125.13,125.1,8.05153102]
[1741804189978,4.43078879,125.12,125.1,8.05153102]
[1741804190180,8.05489845,125.13,125.1,8.05153102]
[1741804190378,4.43070112,125.12,125.11,7.9944]
[1741804190873,4.43070112,125.12,125.1,8.05163102]
[1741804191176,13.31388718,125.13,125.1,0.05693102]
[1741804191377,4.43054481,125.12,125.1,0.05693102]
[1741804191578,13.31388718,125.13,125.11,7.9941]
[1741804191879,4.43040759,125.12,125.11,7.9941]
[1741804192284,4.43035245,125.12,125.1,0.05693102]
[1741804192577,13.31388718,125.13,125.1,0.05693102]
[1741804193283,4.43038207,125.12,125.1,0.05693102]
[1741804193582,13.31388718,125.13,125.1,0.05693102]
[1741804194677,0.06139845,125.13,125.1,0.05693102]
[1741804194880,0.06139845,125.13,125.12,7.9937]
[1741804195383,0.06139845,125.13,125.1,0.05693102]
[1741804195775,4.43072865,125.12,125.1,0.05693102]
[1741804195975,8.05489845,125.13,125.1,0.05693102]
[1741804196280,4.43082999,125.12,125.1,0.05693102]
[1741804196482,8.05489845,125.13,125.1,0.05693102]
[1741804196674,12.42631659,125.12,125.1,0.05693102]
[1741804196874,7.9938,125.12,125.1,0.05693102]
[1741804197876,8.05499845,125.13,125.1,0.05693102]
[1741804198081,4.43451311,125.12,125.1,8.05173102]
[1741804198276,8.05499845,125.13,125.1,8.05173102]
[1741804198478,4.43686335,125.12,125.1,8.05173102]
[1741804198673,8.05499845,125.13,125.1,8.05173102]
[1741804198873,4.43686335,125.12,125.1,8.05173102]
[1741804199078,8.05499845,125.13,125.1,8.05173102]
[1741804199377,4.43686335,125.12,125.1,8.05173102]
[1741804199581,4.43686335,125.11,125.1,8.05193102]
[1741804200383,0.06139845,125.13,125.12,7.9937]
[1741804200584,4.50289221,125.13,125.12,21.24618873]
[1741804201084,0.06139845,125.13,125.12,21.24618873]
[1741804201480,0.06139845,125.13,125.12,7.9937]
[1741804201673,4.50554743,125.13,125.1,19.82581975]
[1741804201882,4.50554743,125.13,125.11,7.9941]
[1741804201883,4.44414898,125.12,125.11,7.9941]
[1741804202280,4.44414898,125.12,125.1,6.57333102]
[1741804202281,4.44414898,125.12,125.1,14.56793102]
[1741804202481,4.44414898,125.11,125.1,14.56793102]
[1741804202884,4.44705894,125.11,125.1,6.57333102]
[1741804203183,4.44705894,125.11,125.1,14.56833102]
[1741804203584,4.44705894,125.11,125.1,12.41023102]
[1741804203780,4.44705894,125.11,125.1,0.05693102]
[1741804204181,4.44705894,125.11,125.1,8.05193102]
[1741804204980,4.44705894,125.11,125.1,0.05693102]
[1741804205885,45.44145894,125.11,125.1,0.05693102]
[1741804206385,37.44705894,125.11,125.1,0.05693102]
[1741804206585,45.44145894,125.11,125.1,0.05693102]
[1741804206886,4.44705894,125.11,125.1,0.05693102]
[1741804207586,12.44145894,125.11,125.1,0.05693102]
[1741804208085,4.44705894,125.11,125.1,0.05693102]
[1741804208791,4.44705894,125.11,125.1,8.05193102]
[1741804208985,0.06139845,125.13,125.1,0.05693102]
[1741804209285,0.06139845,125.13,125.1,8.05163102]
[1741804209883,0.06139845,125.13,125.1,0.05693102]
[1741804209884,8.05449845,125.13,125.1,0.05693102]
[1741804210087,4.44533218,125.12,125.1,0.05693102]
[1741804210386,12.43973218,125.11,125.1,0.05693102]
[1741804212385,4.44533218,125.11,125.1,0.05693102]
[1741804214492,12.43973218,125.11,125.1,0.05693102]
[1741804214996,4.44533218,125.11,125.1,0.05693102]
[1741804215797,4.44499929,125.11,125.1,0.05693102]
[1741804216296,4.44499929,125.11,125.1,8.05133102]
[1741804216490,4.44473738,125.11,125.1,0.05693102]
[1741804216899,4.44473738,125.11,125.1,8.05193102]
[1741804219499,0.06139845,125.13,125.11,7.9943]
[1741804219703,4.44513485,125.12,125.11,7.9943]
[1741804220690,4.44513485,125.12,125.11,40.9943]
[1741804221398,0.06139845,125.13,125.12,7.9937]
[1741804221600,85.15082614,125.19,125.11,53.70217208]
[1741804221799,77.16152614,125.19,125.11,53.70217208]
[1741804221996,20.70217208,125.18,125.13,7.9928]
[1741804222198,20.70217208,125.18,125.11,53.70217208]
[1741804222400,20.70217208,125.18,125.12,7.9936]
[1741804222602,20.70217208,125.18,125.14,0.05393156]
[1741804222603,8.04275574,125.16,125.14,0.05393156]
[1741804223294,0.05125574,125.16,125.14,0.05393156]
[1741804223692,7.9918,125.15,125.14,0.05393156]
[1741804224295,40.9718,125.15,125.14,0.05393156]
[1741804224495,39.1867,125.15,125.08,32.98]
[1741804224703,20.70217208,125.13,125.06,7.9972]
[1741804225196,20.70217208,125.13,125.07,7.9969]
[1741804225404,7.9948,125.11,125.05,421.988464]
[1741804225605,8.05059524,125.11,125.09,0.05933992]
[1741804225802,0.05579524,125.11,125.09,0.05933992]
[1741804226007,33.03579524,125.11,125.09,0.05933992]
[1741804226307,53.73796732,125.11,125.05,361.79699192]
[1741804226604,53.73796732,125.11,125.05,239.86]
[1741804227000,53.73796732,125.11,125.02,6.4099]
[1741804227308,7.9973,125.07,125.05,0.05980512]
[1741804227508,20.70217208,125.07,125.05,0.05980512]
[1741804227709,7.9976,125.06,125.05,0.05980512]
[1741804228010,20.70217208,125.07,125.01,33.26443919]
[1741804228211,20.70217208,125.05,125.01,33.26443919]
[1741804228507,7.9998,125.03,125.01,33.26443919]
[1741804228709,20.70217208,125.05,125.01,33.26443919]
[1741804228903,7.999,125.04,125.01,33.26443919]
[1741804229108,8.05472349,125.04,125.02,0.05448292]
[1741804229308,0.05572349,125.04,125.02,0.05448292]
[1741804229903,8.05452349,125.04,125.02,0.05448292]
[1741804230103,0.05572349,125.04,125.02,0.05448292]
[1741804231509,7.9995,125.03,125.02,0.05448292]
[1741804231708,20.70217208,125.03,124.97,8.0032]
[1741804232705,8.0007,125.02,124.97,8.0032]
[1741804232901,0.05081639,125.01,124.99,0.05326969]
[1741804234009,0.05081639,125.01,124.99,33.03326969]
[1741804234413,0.05081639,125.01,125.0,8.0014]
[1741804234612,32.98,125.07,124.99,53.73544177]
[1741804234815,40.977,125.07,125.01,8.0005]
[1741804235010,40.977,125.07,124.99,53.68217208]
[1741804235011,32.98,125.07,124.99,53.68217208]
[1741804235316,40.9773,125.07,125.02,7.9998]
[1741804235515,7.9973,125.07,125.02,7.9998]
[1741804235716,0.0558102,125.06,125.03,0.06115894]
[1741804236518,20.70217208,125.05,125.03,0.06115894]
[1741804237920,0.0558102,125.06,125.03,0.06115894]
[1741804238420,0.0558102,125.06,125.03,8.06015894]
[1741804238816,0.0558102,125.06,125.03,0.06115894]
[1741804239018,0.0558102,125.06,125.04,7.9987]
[1741804239219,0.0558102,125.06,125.03,0.06115894]
[1741804240022,0.0558102,125.06,125.04,7.9982]
[1741804240225,0.0558102,125.06,125.03,0.06115894]
[1741804240426,2.0433,125.12,125.03,20.76333102]
[1741804240620,10.0374,125.12,125.09,7.9953]
[1741804241015,2.0433,125.12,125.06,32.98]
[1741804241222,20.70217208,125.13,125.06,32.98]
[1741804241619,0.05601279,125.11,125.08,8.05537089]
[1741804241819,0.05601279,125.11,125.08,0.05917089]
[1741804242218,0.05601279,125.11,125.1,7.995]
[1741804242922,0.05601279,125.11,125.09,7.9953]
[1741804243133,20.75818487,125.11,125.08,0.05917089]
[1741804243327,28.75278487,125.11,125.08,0.05917089]
[1741804243526,0.05601279,125.11,125.08,0.05917089]
[1741804244328,20.75818487,125.11,125.08,0.05917089]
[1741804244531,28.75288487,125.11,125.08,0.05917089]
[1741804244733,20.75818487,125.11,125.08,0.05917089]
[1741804245028,7.995,125.1,125.08,0.05917089]
[1741804245235,20.75818487,125.11,125.08,8.05547089]
[1741804245433,0.05601279,125.11,125.08,0.05917089]
[1741804246436,0.05601279,125.11,125.1,7.995]
[1741804246636,0.05601279,125.11,125.08,0.05917089]
[1741804246833,0.05601279,125.11,125.09,7.9953]
[1741804247034,0.05601279,125.11,125.08,0.05917089]
[1741804247331,0.05601279,125.11,125.09,32.98]
[1741804247531,0.05601279,125.11,125.1,7.995]
[1741804248134,8.05041279,125.11,125.09,32.98]
[1741804248329,0.05601279,125.11,125.09,32.98]
[1741804248738,0.05601279,125.11,125.1,7.995]
[1741804249036,0.05601279,125.11,125.09,32.98]
[1741804249342,0.05601279,125.11,125.09,40.9752]
[1741804249939,0.05601279,125.11,125.09,32.98]
[1741804250138,0.05601279,125.11,125.1,7.995]
[1741804255140,1.279e-05,125.11,125.1,28.69717208]
[1741804255648,1.279e-05,125.11,125.1,36.69717208]
[1741804256142,1.279e-05,125.11,125.1,7.995]
[1741804256340,1.279e-05,125.11,125.1,28.69717208]
[1741804261143,1.279e-05,125.11,125.1,7.995]
[1741804261337,1.279e-05,125.11,125.09,10.063]
[1741804261741,1.279e-05,125.11,125.09,35.0077]
[1741804261935,1.279e-05,125.11,125.1,7.995]
[1741804262144,7.99441279,125.11,125.08,244.14447089]
[1741804262351,7.99441279,125.11,125.08,277.08447089]
[1741804262646,7.995,125.1,125.08,285.08027089]
[1741804262842,1.279e-05,125.11,125.08,0.05917089]
[1741804263045,20.70218487,125.11,125.08,0.05917089]
[1741804263242,20.70217208,125.09,125.03,6.2796]
[1741804263441,20.70217208,125.09,125.02,394.70224992]
[1741804263646,20.70217208,125.09,125.04,7.9985]
[1741804264045,20.70217208,125.09,125.02,361.76224992]
[1741804264344,20.75614713,125.07,125.04,0.05880927]
[1741804264649,53.69614713,125.07,125.04,0.05880927]
[1741804265348,7.9976,125.06,125.04,0.05880927]
[1741804265948,32.99397505,125.07,125.04,0.05880927]
[1741804266349,20.70217208,125.06,125.04,0.05880927]
[1741804266550,7.9982,125.05,125.04,0.05880927]
[1741804267055,20.70217208,125.06,125.04,0.05880927]
[1741804267248,28.70007208,125.06,125.04,0.05880927]
[1741804267443,20.70217208,125.06,125.04,0.05880927]
[1741804267643,0.05397505,125.07,125.04,0.05880927]
[1741804267846,0.05397505,125.07,125.05,7.9981]
[1741804268144,0.05397505,125.07,125.04,0.05880927]
[1741804268544,0.05397505,125.07,125.04,8.05740927]
[1741804268751,0.05397505,125.07,125.04,0.05880927]
[1741804269251,0.05397505,125.07,125.04,8.05730927]
[1741804269447,0.05397505,125.07,125.04,0.05880927]
[1741804269846,0.05397505,125.07,125.04,8.05720927]
[1741804270046,0.05397505,125.07,125.04,0.05880927]
[1741804270247,0.05397505,125.07,125.04,8.05730927]
[1741804270449,0.05397505,125.07,125.04,0.05880927]
[1741804270752,0.05397505,125.07,125.05,7.9977]
[1741804271155,0.05397505,125.07,125.04,0.05880927]
[1741804271949,0.05397505,125.07,125.05,7.9982]
[1741804272149,0.05397505,125.07,125.04,0.05880927]
[1741804272553,0.05397505,125.07,125.04,8.05730927]
[1741804272755,0.05397505,125.07,125.04,0.05880927]
[1741804273354,8.05117505,125.07,125.04,8.05720927]
[1741804274651,0.05397505,125.07,125.04,0.05880927]
[1741804274857,0.05397505,125.07,125.06,7.9976]
[1741804275257,0.05397505,125.07,125.04,0.05880927]
[1741804276854,7.9979,125.06,125.04,0.05880927]
[1741804277254,0.05397505,125.07,125.04,0.05880927]
[1741804277458,7.9981,125.06,125.04,0.05880927]
[1741804278264,7.9982,125.05,125.04,0.05880927]
[1741804279358,20.70217208,125.05,124.99,39.2667]
[1741804279551,20.70217208,125.05,124.99,32.94]
[1741804279753,22.72167208,125.05,124.99,32.94]
[1741804279954,22.72167208,125.05,124.97,32.94]
[1741804280650,0.05326443,125.02,125.0,0.06021732]
[1741804281054,0.05326443,125.02,125.01,8.0007]
[1741804282254,32.94,125.07,125.0,0.06021732]
[1741804282460,40.9374,125.07,125.04,7.9987]
[1741804282656,40.9374,125.07,124.92,122.04596442]
[1741804282657,41.40434416,125.05,124.92,122.04596442]
[1741804282964,20.70217208,125.0,124.91,24.91107208]
[1741804283159,53.64217208,125.0,124.94,8.0047]
[1741804283465,53.64217208,125.0,124.91,57.85107208]
[1741804283960,0.05655328,124.97,124.94,0.05738238]
[1741804285062,8.05995328,124.97,124.94,0.05738238]
[1741804285762,0.05655328,124.97,124.94,8.06248238]
[1741804286761,0.05655328,124.97,124.94,0.05738238]
[1741804286762,8.0043,124.96,124.94,0.05738238]
[1741804287161,32.99655328,124.97,124.94,0.05738238]
[1741804287365,41.00015328,124.97,124.94,0.05738238]
[1741804287659,32.99655328,124.97,124.94,0.05738238]
[1741804287865,8.0045,124.96,124.94,0.05738238]
[1741804288363,32.99655328,124.97,124.94,0.05738238]
[1741804288566,8.0046,124.95,124.94,0.05738238]
[1741804289662,20.70217208,124.96,124.91,8.007]
[1741804290364,8.0052,124.95,124.92,8.0063]
[1741804290767,8.06534999,124.95,124.92,8.05965657]
[1741804291065,8.06534999,124.95,124.92,0.05335657]
[1741804291467,8.06534999,124.95,124.92,8.05975657]
[1741804291668,8.0052,124.94,124.92,0.05335657]
[1741804291968,0.06014999,124.95,124.92,0.05335657]
[1741804292469,0.06014999,124.95,124.92,8.05935657]
[1741804292869,8.06504999,124.95,124.92,8.05935657]
[1741804293269,8.06504999,124.95,124.93,8.0058]
[1741804293473,8.06504999,124.95,124.92,0.05335657]
[1741804293770,0.06014999,124.95,124.92,0.05335657]
[1741804293970,0.06014999,124.95,124.92,8.05955657]
[1741804294270,0.06014999,124.95,124.92,0.05335657]
[1741804294772,0.06014999,124.95,124.93,8.0055]
[1741804295464,0.06014999,124.95,124.92,0.05335657]
[1741804295969,8.06474999,124.95,124.93,8.0059]
[1741804296166,0.06014999,124.95,124.93,8.0059]
[1741804296367,0.06014999,124.95,124.92,0.05335657]
[1741804297071,0.06014999,124.95,124.94,8.0052]
[1741804299879,0.06014999,124.95,124.92,0.05335657]
[1741804300067,53.70232207,124.95,124.92,0.05335657]
[1741804300467,20.70217208,124.93,124.83,240.12]
[1741804300671,20.70217208,124.91,124.83,240.12]
[1741804301067,28.70967208,124.91,124.83,240.12]
[1741804301365,32.94,124.92,124.84,20.70217208]
[1741804301571,0.05485361,124.89,124.87,0.05301518]
[1741804301973,0.05485361,124.89,124.88,8.0091]
[1741804303870,0.05485361,124.89,124.87,0.05301518]
[1741804304065,0.05485361,124.89,124.87,8.06231518]
[1741804305375,0.05485361,124.89,124.87,0.05301518]
[1741804306071,0.05485361,124.89,124.88,8.0091]
[1741804307876,0.05485361,124.89,124.87,0.05301518]
[1741804310479,0.05485361,124.89,124.87,8.06241518]
[1741804311076,8.0091,124.88,124.87,0.05301518]
[1741804311483,20.75702569,124.89,124.81,4.1654]
[1741804311682,20.70217208,124.87,124.81,8.013]
[1741804311875,32.94,124.86,124.81,8.013]
[1741804312382,8.0116,124.85,124.8,2.1926]
[1741804312582,0.05422612,124.85,124.82,0.03900105]
[1741804312779,0.05422612,124.85,124.83,8.012]
[1741804312973,0.05422612,124.85,124.82,0.03900105]
[1741804313484,0.05422612,124.85,124.83,8.0119]
[1741804314181,0.05422612,124.85,124.82,0.03900105]
[1741804314376,0.05422612,124.85,124.82,8.05160105]
[1741804314577,8.06552612,124.85,124.82,8.05160105]
[1741804314984,0.05422612,124.85,124.83,8.0121]
[1741804315381,0.05422612,124.85,124.82,0.03900105]
[1741804315576,0.05422612,124.85,124.84,8.0116]
[1741804317583,8.012,124.84,124.75,53.64217208]
[1741804317886,8.012,124.84,124.75,57.68487208]
[1741804318086,20.70217208,124.83,124.76,2.0698]
[1741804318683,32.94,124.82,124.75,4.0427]
[1741804318980,0.05282409,124.81,124.75,4.0427]
[1741804319281,20.75499617,124.81,124.71,383.23666447]
[1741804319583,20.70217208,124.75,124.68,39.29553919]
[1741804319786,32.94,124.77,124.72,8.0193]
[1741804320081,32.94,124.77,124.7,32.94]
[1741804320384,0.0608584,124.76,124.71,8.0197]
[1741804320585,0.0608584,124.76,124.7,32.94]
[1741804320785,0.0608584,124.76,124.71,20.70217208]
[1741804321185,0.0608584,124.76,124.7,32.94]
[1741804321587,20.76303048,124.76,124.68,6.0311]
[1741804321787,20.70217208,124.76,124.68,6.0311]
[1741804321994,0.05464363,124.73,124.68,6.0311]
[1741804323388,0.05464363,124.73,124.65,88.70517117]
[1741804323389,20.70217208,124.72,124.65,88.70517117]
[1741804323592,8.021,124.7,124.65,96.72857117]
[1741804323779,8.08070453,124.7,124.65,96.72857117]
[1741804324088,28.78287661,124.7,124.65,96.72857117]
[1741804324288,8.0226,124.67,124.65,88.70517117]
[1741804324491,8.0226,124.67,124.63,6.0732]
[1741804324785,8.0236,124.66,124.61,8.026]
[1741804324991,0.05975938,124.66,124.6,39.0012]
[1741804325182,20.76193146,124.66,124.6,6.0612]
[1741804325491,20.76193146,124.66,124.6,14.0878]
[1741804325885,0.05975938,124.66,124.6,6.0612]
[1741804326487,32.96,124.65,124.59,33.26443919]
[1741804326789,20.70217208,124.64,124.59,33.26443919]
[1741804326984,0.05577094,124.63,124.59,33.26443919]
[1741804327187,53.66217208,124.62,124.59,33.26443919]
[1741804327689,32.96,124.62,124.59,33.26443919]
[1741804327991,32.96,124.62,124.57,186.55431125]
[1741804327992,32.96,124.62,124.57,6.0344]
[1741804328383,53.66217208,124.62,124.57,6.0344]
[1741804329180,53.66217208,124.62,124.53,53.66217208]
[1741804329398,53.66217208,124.62,124.56,8.0291]
[1741804329589,0.05862654,124.59,124.54,2.1981]
[1741804329986,33.01862654,124.59,124.54,2.1981]
[1741804330191,20.70217208,124.58,124.54,2.1981]
[1741804330392,33.01862654,124.59,124.54,2.1981]
[1741804331090,33.01862654,124.59,124.56,8.0292]
[1741804331289,33.01862654,124.59,124.54,2.1981]
[1741804331486,0.05862654,124.59,124.54,35.1581]
[1741804332693,0.05862654,124.59,124.57,8.0285]
[1741804332889,0.05862654,124.59,124.54,35.1581]
[1741804333289,0.05862654,124.59,124.58,8.0284]
[1741804333489,0.05862654,124.59,124.54,35.1581]
[1741804334090,0.05862654,124.59,124.55,20.70217208]
[1741804334594,0.05862654,124.59,124.58,8.0284]
[1741804335688,0.05862654,124.59,124.54,35.1581]
[1741804336090,8.08632654,124.59,124.54,35.1581]
[1741804336489,8.08632654,124.59,124.54,2.1981]
[1741804336688,28.73057208,124.58,124.52,4.0397]
[1741804336899,20.70217208,124.54,124.46,1.39750617]
[1741804337088,20.70217208,124.54,124.46,24.95997208]
[1741804337289,0.05378702,124.51,124.47,32.98]
[1741804337599,0.05378702,124.51,124.5,8.0335]
[1741804337600,8.702e-05,124.51,124.5,8.0335]
[1741804338097,8.702e-05,124.51,124.5,61.71567208]
[1741804338285,32.98,124.61,124.55,8.0299]
[1741804338490,33.41824635,124.6,124.5,32.98]
[1741804338692,33.41824635,124.6,124.51,2.1298]
[1741804338894,33.41824635,124.6,124.54,8.0306]
[1741804339097,33.41824635,124.6,124.51,2.1298]
[1741804339294,8.0284,124.58,124.53,8.0313]
[1741804339593,0.05494939,124.57,124.54,0.05540452]
[1741804339791,4.28064939,124.57,124.54,0.05540452]
[1741804339985,8.0302,124.56,124.54,0.05540452]
[1741804340194,8.0302,124.56,124.47,2.1298]
[1741804340393,6.34624939,124.57,124.48,32.98]
[1741804340692,6.2913,124.57,124.48,66.39824635]
[1741804340896,6.2913,124.57,124.48,32.98]
[1741804341397,0.05071574,124.54,124.48,32.98]
[1741804342797,0.05071574,124.54,124.47,2.1298]
[1741804343093,33.41824635,124.52,124.44,32.98]
[1741804343299,66.39824635,124.52,124.44,32.98]
[1741804343497,0.06071058,124.49,124.44,66.39824635]
[1741804343998,0.06071058,124.49,124.48,8.0348]
[1741804345190,33.0,124.55,124.48,33.0]
[1741804345391,33.0,124.55,124.52,8.0321]
[1741804345801,6.2913,124.57,124.51,33.0]
[1741804346398,0.05982539,124.55,124.53,0.05097296]
[1741804346997,0.05982539,124.55,124.54,8.0309]
[1741804347196,0.05982539,124.55,124.53,0.05097296]
[1741804347694,0.05982539,124.55,124.53,8.08227296]
[1741804347899,0.05982539,124.55,124.53,0.05097296]
[1741804348398,0.05982539,124.55,124.54,8.0309]
[1741804348995,0.05982539,124.55,124.54,41.0309]
[1741804349396,33.41824635,124.64,124.59,8.0276]
[1741804349601,33.41824635,124.64,124.57,33.0]
[1741804349802,33.0,124.65,124.57,33.0]
[1741804350000,8.024,124.65,124.57,33.0]
[1741804350203,33.41824635,124.66,124.57,33.0]
[1741804350506,0.05805424,124.63,124.62,8.0254]
[1741804352599,0.05805424,124.63,124.61,0.05947263]
[1741804353102,0.05805424,124.63,124.62,8.0258]
[1741804354302,8.0215,124.69,124.64,8.0242]
[1741804354509,2.1304,124.71,124.63,33.0]
[1741804354711,37.48144635,124.74,124.64,35.55744635]
[1741804354898,37.48144635,124.74,124.65,2.1181]
[1741804354899,4.0632,124.74,124.65,2.1181]
[1741804355098,4.0632,124.74,124.66,66.41824635]
[1741804355504,8.07785464,124.71,124.69,0.05993567]
[1741804355708,0.05785464,124.71,124.69,0.05993567]
[1741804356710,8.0206,124.7,124.69,0.05993567]
[1741804357707,74.41824635,124.7,124.62,2.1181]
[1741804358011,66.39824635,124.7,124.62,2.1181]
[1741804358207,66.39824635,124.7,124.63,8.0249]
[1741804358400,66.39824635,124.7,124.62,2.1181]
[1741804358911,0.05115864,124.67,124.65,0.0580516]
[1741804359312,8.07405864,124.67,124.65,0.0580516]
[1741804359518,0.05115864,124.67,124.65,0.0580516]
[1741804362315,8.07415864,124.67,124.65,0.0580516]
[1741804363320,0.05115864,124.67,124.65,0.0580516]
[1741804363819,8.07405864,124.67,124.65,0.0580516]
[1741804364113,0.05115864,124.67,124.65,0.0580516]